bitfinex/quotes_SOLUSD_20241208
["timestamp","ask_amount","ask_price","bid_price","bid_amount"]
[1733698871206,0.12549,236.94,236.9,5.0]
[1733698874137,8.25921444,236.93,236.88,5.0]
[1733698874503,8.25921444,236.91,236.88,5.0]
[1733698875541,8.25921444,236.91,236.86,5.0]
[1733698877018,8.25921444,236.91,236.85,5.0]
[1733698877019,0.12549,236.92,236.88,5.0]
[1733698879155,8.25921444,236.91,236.88,5.0]
[1733698880344,8.25921444,236.91,236.86,5.0]
[1733698882923,8.25921444,236.89,236.84,5.0]
[1733698883228,8.25921444,236.87,236.84,5.0]
[1733698884259,8.25921444,236.86,236.84,5.0]
[1733698884620,8.25921444,236.85,236.84,5.0]
[1733698885562,8.25921444,236.85,236.83,5.0]
[1733698885863,8.25921444,236.84,236.8,5.0]
[1733698886241,8.25921444,236.82,236.8,5.0]
[1733698887263,8.25921444,236.82,236.78,5.0]
[1733698887565,8.25921444,236.81,236.78,5.0]
[1733698888360,8.25921444,236.82,236.78,5.0]
[1733698889066,20.0,236.85,236.78,5.0]
[1733698889280,8.25921444,236.81,236.78,5.0]
[1733698890134,20.0,236.85,236.75,1.5984]
[1733698890135,8.25921444,236.79,236.75,5.0]
[1733698890342,8.25921444,236.8,236.75,5.0]
[1733698890552,8.25921444,236.81,236.75,5.0]
[1733698891076,8.25921444,236.77,236.74,0.99444291]
[1733698891238,8.25921444,236.77,236.73,5.0]
[1733698891567,8.25921444,236.76,236.71,5.0]
[1733698891735,8.25921444,236.74,236.71,5.0]
[1733698892661,8.38470444,236.73,236.69,5.0]
[1733698893346,8.25921444,236.72,236.69,5.0]
[1733698894377,8.25921444,236.72,236.67,5.0]
[1733698895335,0.12549,236.73,236.69,5.0]
[1733698895535,0.12549,236.73,236.69,18.25921444]
[1733698895734,0.12549,236.73,236.71,5.0]
[1733698896162,8.25921444,236.75,236.71,5.0]
[1733698897946,0.12549,236.79,236.71,5.0]
[1733698898273,8.25921444,236.76,236.71,5.0]
[1733698898455,8.25921444,236.76,236.73,5.0]
[1733698898779,8.25921444,236.78,236.73,10.0]
[1733698898938,8.25921444,236.78,236.75,5.0]
[1733698899666,8.25921444,236.78,236.73,10.0]
[1733698899876,2.111,236.85,236.73,10.0]
[1733698899877,8.25921444,236.77,236.73,10.0]
[1733698902750,8.25921444,236.77,236.73,5.0]
[1733698903069,8.25921444,236.77,236.73,10.0]
[1733698903378,8.25921444,236.77,236.73,5.0]
[1733698903565,8.25921444,236.77,236.73,10.0]
[1733698905082,8.25921444,236.79,236.73,10.0]
[1733698905275,8.25921444,236.79,236.75,5.0]
[1733698906166,8.25921444,236.79,236.77,5.0]
[1733698906392,0.12549,236.84,236.77,5.0]
[1733698906561,8.25921444,236.82,236.77,5.0]
[1733698906761,8.25921444,236.82,236.79,5.0]
[1733698906983,6.1603,236.88,236.81,5.0]
[1733698907295,8.25921444,236.83,236.81,5.0]
[1733698907580,2.1107,236.89,236.81,5.0]
[1733698907780,2.1103,236.93,236.82,5.0]
[1733698907956,8.25921444,236.86,236.82,5.0]
[1733698908491,8.25921444,236.87,236.84,5.0]
[1733698908892,8.25921444,236.89,236.85,5.0]
[1733698909088,8.25921444,236.89,236.86,5.0]
[1733698909586,3.7569,236.97,236.86,5.0]
[1733698909587,2.11,236.97,236.86,5.0]
[1733698909900,2.11,236.97,236.87,5.0]
[1733698910191,8.25921444,236.9,236.87,5.0]
[1733698910577,8.25921444,236.9,236.89,5.0]
[1733698911471,0.12549,236.96,236.89,5.0]
[1733698911782,8.25921444,236.91,236.89,5.0]
[1733698911971,8.25921444,236.91,236.87,10.0]
[1733698912297,8.25921444,236.91,236.89,5.0]
[1733698913593,0.12549,236.9,236.85,5.0]
[1733698913778,8.25921444,236.88,236.85,5.0]
[1733698914294,8.25921444,236.88,236.85,10.0]
[1733698914497,8.25921444,236.88,236.87,5.0]
[1733698915067,8.38470444,236.9,236.87,5.0]
[1733698917507,8.38470444,236.9,236.85,10.0]
[1733698918418,22.11,236.97,236.88,5.0]
[1733698918724,8.25921444,236.91,236.88,5.0]
[1733698918894,8.25921444,236.91,236.87,5.0]
[1733698919427,8.25921444,236.89,236.85,5.0]
[1733698919627,8.25921444,236.87,236.83,5.0]
[1733698919923,8.25921444,236.85,236.83,5.0]
[1733698920297,8.25921444,236.85,236.77,9.91801444]
[1733698920298,8.25921444,236.84,236.81,5.0]
[1733698920690,8.25921444,236.83,236.81,5.0]
[1733698921327,8.25921444,236.82,236.81,5.0]
[1733698921620,8.25921444,236.82,236.79,5.0]
[1733698921867,8.25921444,236.81,236.79,5.0]
[1733698924428,8.25921444,236.82,236.79,5.0]
[1733698926319,8.25921444,236.8,236.74,5.0]
[1733698926526,8.25921444,236.78,236.73,5.0]
[1733698928499,8.25921444,236.78,236.75,5.0]
[1733698933040,8.25921444,236.79,236.75,5.0]
[1733698934447,8.25921444,236.8,236.75,5.0]
[1733698935352,8.25921444,236.78,236.75,5.0]
[1733698935557,0.12549,236.79,236.75,5.0]
[1733698938632,8.25921444,236.78,236.75,5.0]
[1733698938832,8.25921444,236.78,236.73,5.0]
[1733698939163,8.25921444,236.76,236.73,5.0]
[1733698940341,8.25921444,236.78,236.75,5.0]
[1733698943930,0.12549,236.77,236.73,5.0]
[1733698944139,8.25921444,236.76,236.73,5.0]
[1733698946943,8.38470444,236.77,236.73,5.0]
[1733698948770,0.12549,236.77,236.73,5.0]
[1733698948976,20.0,236.76,236.73,5.0]
[1733698949994,8.25921444,236.82,236.76,10.0]
[1733698950503,8.25921444,236.82,236.78,5.0]
[1733698951166,8.25921444,236.85,236.8,10.0]
[1733698951581,8.25921444,236.86,236.8,10.0]
[1733698952274,8.25921444,236.86,236.83,5.0]
[1733698952984,8.25921444,236.85,236.83,5.0]
[1733698953294,8.25921444,236.84,236.83,5.0]
[1733698955108,8.25921444,236.84,236.78,5.0]
[1733698955269,8.25921444,236.81,236.78,5.0]
[1733698955805,8.25921444,236.8,236.76,5.0]
[1733698958703,8.25921444,236.8,236.76,10.0]
[1733698959006,2.1108,236.87,236.76,10.0]
[1733698959007,8.25921444,236.81,236.76,10.0]
[1733698960496,20.0,236.8,236.76,10.0]
[1733698962518,8.25921444,236.81,236.76,10.0]
[1733698962916,8.25921444,236.81,236.76,5.0]
[1733698967521,8.25921444,236.81,236.76,10.0]
[1733698978402,8.25921444,236.81,236.76,5.0]
[1733698978774,8.25921444,236.79,236.76,5.0]
[1733698979168,8.25921444,236.79,236.74,5.0]
[1733698979776,20.0,236.83,236.74,5.0]
[1733698979777,20.0,236.76,236.74,5.0]
[1733698979984,20.0,236.75,236.74,5.0]
[1733698980185,20.0,236.75,236.72,5.0]
[1733698982372,8.38470444,236.78,236.72,10.0]
[1733698982577,20.0,236.75,236.72,10.0]
[1733698982979,20.0,236.76,236.72,10.0]
[1733698984811,20.0,236.75,236.72,10.0]
[1733698987383,20.0,236.76,236.74,5.0]
[1733698987600,10.37061444,236.81,236.75,5.0]
[1733698987910,20.0,236.78,236.75,5.0]
[1733698988088,0.12549,236.8,236.75,5.0]
[1733698988290,0.12549,236.8,236.77,5.0]
[1733698988615,8.25921444,236.81,236.77,5.0]
[1733698989692,8.25921444,236.79,236.77,5.0]
[1733698990110,20.0,236.83,236.77,5.0]
[1733698990295,8.25921444,236.81,236.77,5.0]
[1733698995730,43.776884,236.68,236.64,0.98243867]
[1733698996033,0.12549,236.6,236.54,1.6216]
[1733698996236,8.25921444,236.56,236.5,1.3453]
[1733698996410,8.25921444,236.53,236.48,2.9669]
[1733698996609,8.25921444,236.53,236.5,1.3453]
[1733698997221,8.25921444,236.53,236.49,1.3453]
[1733698997934,28.25921444,236.51,236.49,1.3453]
[1733698998605,20.0,236.51,236.49,1.3453]
[1733699000013,20.0,236.51,236.48,1.6216]
[1733699000014,6.88430766,236.61,236.57,1.3453]
[1733699000218,8.25921444,236.58,236.57,1.3453]
[1733699004441,6.88430766,236.61,236.59,1.3453]
[1733699004734,8.25921444,236.6,236.59,1.3453]
[1733699005946,6.88430766,236.61,236.59,1.3453]
[1733699006141,8.25921444,236.6,236.59,1.3453]
[1733699011435,6.88430766,236.61,236.59,1.3453]
[1733699011642,8.25921444,236.6,236.59,1.3453]
[1733699015449,8.25921444,236.62,236.59,1.3453]
[1733699016343,8.25921444,236.61,236.59,1.3453]
[1733699025461,8.25921444,236.6,236.59,1.3453]
[1733699027260,8.25921444,236.6,236.57,1.3453]
[1733699027547,8.25921444,236.58,236.57,1.3453]
[1733699027925,8.25921444,236.58,236.54,1.3453]
[1733699028126,8.25921444,236.56,236.54,1.3453]
[1733699028359,8.25921444,236.55,236.54,1.3453]
[1733699028565,8.25921444,236.56,236.54,1.3453]
[1733699029979,8.25921444,236.57,236.54,1.3453]
[1733699032257,8.25921444,236.55,236.54,1.3453]
[1733699034480,0.12549,236.54,236.5,1.3453]
[1733699034659,8.25921444,236.51,236.46,1.3453]
[1733699034860,8.25921444,236.47,236.46,1.3453]
[1733699035055,8.25921444,236.47,236.43,0.4885453]
[1733699035275,8.25921444,236.46,236.43,0.4885453]
[1733699035476,8.25921444,236.44,236.43,0.4885453]
[1733699035860,14.617349,236.44,236.43,0.4885453]
[1733699036568,6.23264456,236.44,236.43,1.8338453]
[1733699036762,20.0,236.49,236.48,1.3453]
[1733699036961,20.0,236.49,236.43,0.4885453]
[1733699036962,11.2161,236.61,236.5,1.3453]
[1733699037265,3.6547,236.57,236.45,1.3453]
[1733699037588,5.0,236.52,236.43,0.4885453]
[1733699037787,6.23430766,236.51,236.43,0.4885453]
[1733699038087,8.25921444,236.44,236.43,0.4885453]
[1733699038290,6.23430766,236.51,236.43,0.4885453]
[1733699038291,6.23430766,236.51,236.43,1.8338453]
[1733699038594,0.12549,236.5,236.46,1.3453]
[1733699038772,8.25921444,236.49,236.46,1.3453]
[1733699038958,8.25921444,236.49,236.48,1.3453]
[1733699040685,20.0,236.54,236.48,1.3453]
[1733699040880,8.25921444,236.5,236.48,1.3453]
[1733699041275,8.25921444,236.49,236.48,1.3453]
[1733699041592,8.25921444,236.49,236.43,0.4885453]
[1733699041801,8.25921444,236.45,236.43,0.4885453]
[1733699042102,2.90318829,236.5,236.43,0.4885453]
[1733699042103,2.90318829,236.5,236.48,1.3453]
[1733699042312,20.0,236.52,236.51,1.3453]
[1733699042678,28.25921444,236.52,236.51,1.3453]
[1733699042867,28.38470444,236.52,236.47,1.3453]
[1733699043066,8.25921444,236.48,236.43,0.4885453]
[1733699043265,0.12549,236.51,236.48,1.3453]
[1733699043700,8.25921444,236.5,236.48,1.3453]
[1733699043903,8.25921444,236.49,236.48,1.3453]
[1733699045007,20.0,236.46,236.44,1.3453]
[1733699045379,8.25921444,236.45,236.44,1.3453]
[1733699045787,6.23430766,236.52,236.46,1.3453]
[1733699045976,20.0,236.5,236.49,1.3453]
[1733699046281,8.25921444,236.51,236.49,1.3453]
[1733699046483,8.84300582,236.61,236.52,1.3453]
[1733699046484,6.23430766,236.59,236.52,1.3453]
[1733699046687,8.25921444,236.55,236.52,1.3453]
[1733699046915,6.23430766,236.59,236.54,1.3453]
[1733699047096,8.25921444,236.57,236.54,1.3453]
[1733699047297,6.23430766,236.59,236.54,1.3453]
[1733699047608,8.25921444,236.59,236.58,1.3453]
[1733699047788,8.25921444,236.61,236.58,1.3453]
[1733699047990,6.23430766,236.64,236.58,1.3453]
[1733699048202,8.25921444,236.62,236.58,1.3453]
[1733699048400,8.25921444,236.61,236.58,1.3453]
[1733699048706,39.27116542,236.64,236.58,1.3453]
[1733699048906,8.25921444,236.6,236.58,1.3453]
[1733699049111,6.23430766,236.64,236.62,1.3453]
[1733699049412,8.25921444,236.63,236.59,1.3453]
[1733699049617,8.25921444,236.6,236.56,1.3453]
[1733699049913,8.25921444,236.57,236.56,1.3453]
[1733699050211,8.25921444,236.58,236.56,1.3453]
[1733699050516,8.25921444,236.59,236.56,1.3453]
[1733699050683,8.25921444,236.59,236.58,1.3453]
[1733699051106,8.25921444,236.59,236.54,1.3453]
[1733699051304,8.25921444,236.55,236.52,1.3453]
[1733699051609,8.25921444,236.55,236.53,1.3453]
[1733699051919,8.25921444,236.58,236.55,1.3453]
[1733699052107,8.25921444,236.59,236.55,1.3453]
[1733699053040,8.25921444,236.61,236.59,1.3453]
[1733699053735,8.25921444,236.62,236.59,1.3453]
[1733699053899,6.23430766,236.63,236.61,1.3453]
[1733699054102,8.25921444,236.67,236.63,1.3453]
[1733699054351,8.25921444,236.66,236.63,1.3453]
[1733699056713,8.25921444,236.64,236.63,1.3453]
[1733699057729,8.25921444,236.65,236.63,1.3453]
[1733699057923,6.23264456,236.66,236.63,1.3453]
[1733699058106,8.25921444,236.65,236.63,1.3453]
[1733699058717,14.491859,236.66,236.63,1.3453]
[1733699059148,8.25921444,236.67,236.63,1.3453]
[1733699059652,8.25921444,236.66,236.63,1.3453]
[1733699062344,14.49740766,236.72,236.63,1.3453]
[1733699062345,8.25921444,236.65,236.63,1.3453]
[1733699062542,8.25921444,236.64,236.63,1.3453]
[1733699063222,8.25921444,236.65,236.63,1.3453]
[1733699063615,14.4935221,236.66,236.63,1.3453]
[1733699063817,14.4935221,236.66,236.6,1.5786]
[1733699063818,20.0,236.69,236.65,1.3453]
[1733699064004,8.25921444,236.67,236.65,1.3453]
[1733699066965,8.25921444,236.68,236.65,1.3453]
[1733699067334,6.23430766,236.72,236.67,1.3453]
[1733699067566,14.4935221,236.72,236.7,1.3453]
[1733699067872,8.25921444,236.72,236.7,1.3453]
[1733699068162,8.25921444,236.73,236.7,1.3453]
[1733699068372,6.23430766,236.77,236.74,1.3453]
[1733699068538,8.25921444,236.76,236.74,1.3453]
[1733699069439,8.38470444,236.75,236.74,1.3453]
[1733699070040,0.12549,236.74,236.7,1.3453]
[1733699070366,8.25921444,236.71,236.68,1.3453]
[1733699070570,8.25921444,236.69,236.66,1.3453]
[1733699070744,8.25921444,236.68,236.66,1.3453]
[1733699071271,12.86477316,236.69,236.68,1.3453]
[1733699072648,20.0,236.66,236.63,1.3453]
[1733699072840,12.86477316,236.64,236.6,2.9239]
[1733699073163,20.0,236.66,236.62,1.3453]
[1733699073350,0.12549,236.68,236.62,1.3453]
[1733699074343,12.86477316,236.63,236.59,1.3453]
[1733699074546,12.86477316,236.61,236.59,1.3453]
[1733699075564,12.86477316,236.6,236.59,1.3453]
[1733699076058,20.0,236.58,236.57,1.3453]
[1733699076240,32.86477316,236.58,236.57,1.3453]
[1733699076438,32.86477316,236.58,236.55,1.3453]
[1733699076679,14.97767316,236.64,236.55,1.3453]
[1733699076680,12.86477316,236.57,236.55,1.3453]
[1733699076853,12.86477316,236.56,236.55,1.3453]
[1733699077239,12.86477316,236.56,236.51,1.3453]
[1733699077240,20.0,236.53,236.51,1.3453]
[1733699077533,12.86477316,236.52,236.51,1.3453]
[1733699078768,12.86477316,236.52,236.45,1.5074]
[1733699078769,12.99026316,236.52,236.49,1.3453]
[1733699078951,12.86477316,236.5,236.49,1.3453]
[1733699079263,12.86477316,236.51,236.49,1.3453]
[1733699080334,12.86477316,236.5,236.49,1.3453]
[1733699080536,12.86477316,236.5,236.46,1.3453]
[1733699080772,12.86477316,236.49,236.48,1.3453]
[1733699081569,12.86477316,236.49,236.44,1.3453]
[1733699081780,12.86477316,236.48,236.47,1.3453]
[1733699082762,12.86477316,236.49,236.47,1.3453]
[1733699083160,20.0,236.48,236.47,1.3453]
[1733699083570,12.86477316,236.54,236.52,1.3453]
[1733699084059,12.86477316,236.53,236.52,1.3453]
[1733699084576,6.23461996,236.55,236.54,1.3453]
[1733699084783,12.86477316,236.59,236.57,1.3453]
[1733699084948,12.86477316,236.58,236.57,1.3453]
[1733699085144,12.86477316,236.59,236.57,1.3453]
[1733699087078,12.86477316,236.58,236.57,1.3453]
[1733699087663,12.86477316,236.58,236.54,1.3453]
[1733699087664,20.0,236.55,236.54,1.3453]
[1733699087869,32.86477316,236.55,236.54,1.3453]
[1733699089661,32.86477316,236.55,236.54,0.3453]
[1733699090560,32.99026316,236.55,236.52,0.3453]
[1733699090762,12.86477316,236.53,236.52,0.3453]
[1733699091078,12.86477316,236.53,236.5,0.3453]
[1733699091279,12.86477316,236.51,236.5,0.3453]
[1733699092586,12.99026316,236.51,236.5,0.3453]
[1733699092959,12.99026316,236.51,236.49,0.3453]
[1733699093169,12.86477316,236.5,236.48,0.3453]
[1733699093384,12.86477316,236.49,236.48,0.3453]
[1733699093877,12.86477316,236.49,236.46,0.3453]
[1733699094070,12.86477316,236.47,236.46,0.3453]
[1733699094690,12.86477316,236.49,236.48,0.3453]
[1733699094856,12.99026316,236.49,236.48,0.3453]
[1733699095258,12.99026316,236.49,236.45,0.3453]
[1733699095571,12.86477316,236.47,236.45,0.3453]
[1733699095991,20.0,236.44,236.43,0.8338453]
[1733699097370,32.99026316,236.44,236.43,0.8338453]
[1733699097567,20.0,236.44,236.43,0.8338453]
[1733699101490,32.99026316,236.44,236.43,0.4885453]
[1733699102085,20.12549,236.44,236.43,0.4885453]
[1733699102286,32.99026316,236.44,236.43,0.8338453]
[1733699102479,32.99026316,236.44,236.43,0.4885453]
[1733699103376,32.99026316,236.44,236.43,0.8338453]
[1733699103609,32.86477316,236.44,236.43,0.8338453]
[1733699103828,20.0,236.44,236.43,0.8338453]
[1733699104527,32.86477316,236.44,236.43,0.8338453]
[1733699105338,20.0,236.44,236.43,0.8338453]
[1733699105539,32.86477316,236.44,236.43,0.8338453]
[1733699106632,0.12549,236.47,236.46,0.3453]
[1733699107234,19.09939312,236.48,236.46,0.3453]
[1733699107407,12.99026316,236.47,236.46,0.3453]
[1733699109105,6.23461996,236.48,236.46,0.3453]
[1733699109106,19.09939312,236.48,236.46,0.3453]
[1733699109316,6.23461996,236.48,236.46,0.3453]
[1733699111938,12.86477316,236.52,236.51,0.3453]
[1733699112141,6.23461996,236.53,236.51,0.3453]
[1733699112823,12.86477316,236.54,236.51,0.3453]
[1733699113020,12.86477316,236.55,236.53,0.3453]
[1733699113224,8.24280375,236.55,236.53,0.3453]
[1733699114544,8.24280375,236.56,236.53,0.3453]
[1733699114723,8.24280375,236.57,236.56,0.3453]
[1733699115328,12.87759677,236.57,236.56,0.3453]
[1733699116914,32.87759677,236.57,236.52,0.3453]
[1733699117115,12.87759677,236.53,236.5,0.3453]
[1733699117340,32.87759677,236.51,236.5,0.3453]
[1733699117644,32.87759677,236.51,236.48,0.3453]
[1733699117835,12.87759677,236.49,236.48,0.3453]
[1733699118922,12.87759677,236.49,236.46,0.3453]
[1733699119120,20.0,236.53,236.46,0.3453]
[1733699119121,13.00308677,236.48,236.46,0.3453]
[1733699119342,12.87759677,236.47,236.46,0.3453]
[1733699119850,12.87759677,236.47,236.44,0.3453]
[1733699120145,32.87759677,236.45,236.44,0.3453]
[1733699122021,20.0,236.45,236.44,0.3453]
[1733699122223,12.87759677,236.5,236.44,0.3453]
[1733699122553,12.87759677,236.5,236.49,0.3453]
[1733699123116,12.87759677,236.52,236.49,0.3453]
[1733699123336,12.87759677,236.52,236.51,0.3453]
[1733699123948,12.87759677,236.53,236.51,0.3453]
[1733699124247,12.87759677,236.54,236.53,0.3453]
[1733699124422,12.87759677,236.55,236.53,0.3453]
[1733699125546,5.81129466,236.6,236.45,1.5913]
[1733699125547,12.87759677,236.57,236.55,0.3453]
[1733699126060,12.87759677,236.6,236.59,0.3453]
[1733699126360,5.88829274,236.62,236.61,0.3453]
[1733699126930,18.76588951,236.62,236.61,0.3453]
[1733699127432,18.89137951,236.62,236.61,0.3453]
[1733699128243,6.01378274,236.62,236.61,0.3453]
[1733699129261,5.88829274,236.62,236.61,0.3453]
[1733699130338,5.88829274,236.67,236.61,13.22289677]
[1733699130658,18.76588951,236.67,236.61,0.3453]
[1733699130842,18.76588951,236.67,236.66,0.3453]
[1733699131569,18.89137951,236.67,236.66,0.3453]
[1733699134156,20.0,236.64,236.61,0.3453]
[1733699134472,13.00308677,236.62,236.61,0.3453]
[1733699134675,18.89137951,236.62,236.59,0.3453]
[1733699134853,20.0,236.6,236.59,0.3453]
[1733699136657,20.0,236.6,236.59,13.22289677]
[1733699136861,12.87759677,236.66,236.59,13.22289677]
[1733699136862,0.12549,236.65,236.59,13.22289677]
[1733699137064,0.12549,236.65,236.64,0.3453]
[1733699138566,20.0,236.65,236.64,0.3453]
[1733699138787,2.1118,236.76,236.72,0.3453]
[1733699139071,8.0058,236.8,236.72,0.3453]
[1733699139072,12.87759677,236.78,236.74,0.3453]
[1733699139277,21.40919677,236.8,236.76,0.3453]
[1733699139457,12.87759677,236.81,236.78,0.3453]
[1733699141086,0.12549,236.8,236.78,0.3453]
[1733699141474,12.87759677,236.82,236.78,0.3453]
[1733699142059,20.0,236.79,236.78,0.3453]
[1733699142264,20.12549,236.79,236.78,0.3453]
[1733699142994,33.00308677,236.79,236.78,0.3453]
[1733699143988,33.00308677,236.79,236.73,0.3453]
[1733699143989,0.12549,236.78,236.73,0.3453]
[1733699144299,20.0,236.71,236.7,0.3453]
[1733699145294,32.87759677,236.71,236.7,0.3453]
[1733699145793,2.23779,236.7,236.68,0.3453]
[1733699145961,2.23779,236.7,236.6,1.6481]
[1733699145962,20.0,236.66,236.64,0.3453]
[1733699146157,20.0,236.63,236.62,0.3453]
[1733699154391,20.12549,236.63,236.6,0.3453]
[1733699154701,20.0,236.61,236.6,0.3453]
[1733699155578,32.87759677,236.61,236.6,0.3453]
[1733699156285,32.87759677,236.61,236.56,0.3453]
[1733699156286,2.23869,236.6,236.56,0.3453]
[1733699156486,12.87759677,236.58,236.56,0.3453]
[1733699157204,13.00308677,236.57,236.56,0.3453]
[1733699157414,20.0,236.55,236.54,0.3453]
[1733699157581,32.87759677,236.55,236.54,0.3453]
[1733699157893,33.00308677,236.55,236.54,0.3453]
[1733699159717,20.12549,236.55,236.54,0.3453]
[1733699160286,33.00308677,236.55,236.54,0.3453]
[1733699161808,33.00308677,236.55,236.52,0.3453]
[1733699162194,12.87759677,236.54,236.52,0.3453]
[1733699163105,12.87759677,236.53,236.5,0.3453]
[1733699163298,5.0,236.61,236.5,0.3453]
[1733699163299,32.87759677,236.51,236.5,0.3453]
[1733699163797,0.12549,236.5,236.48,0.3453]
[1733699164001,12.87759677,236.49,236.48,0.3453]
[1733699165483,13.00308677,236.5,236.48,0.3453]
[1733699165684,13.00308677,236.54,236.53,0.3453]
[1733699166919,12.87759677,236.55,236.53,0.3453]
[1733699167129,12.87759677,236.56,236.53,0.3453]
[1733699167419,14.99109677,236.58,236.55,0.3453]
[1733699167604,12.87759677,236.57,236.55,0.3453]
[1733699168486,0.12549,236.56,236.55,0.3453]
[1733699168910,13.00308677,236.56,236.55,0.3453]
[1733699169085,13.00308677,236.56,236.53,0.3453]
[1733699169293,32.87759677,236.54,236.53,0.3453]
[1733699169492,33.00308677,236.54,236.53,0.3453]
[1733699172198,0.12549,236.53,236.49,0.3453]
[1733699172407,12.87759677,236.5,236.49,0.3453]
[1733699173105,13.00308677,236.53,236.51,0.3453]
[1733699173309,0.12549,236.53,236.51,0.3453]
[1733699173506,20.0,236.52,236.51,0.3453]
[1733699174024,2.1134,236.59,236.56,0.3453]
[1733699174200,12.87759677,236.58,236.56,0.3453]
[1733699175488,9.2249,236.69,236.56,0.3453]
[1733699175489,12.87759677,236.6,236.56,0.3453]
[1733699175689,2.113,236.63,236.47,5.0]
[1733699175690,12.87759677,236.61,236.6,0.3453]
[1733699176991,13.00308677,236.61,236.6,0.3453]
[1733699178019,12.87759677,236.63,236.6,0.3453]
[1733699178224,2.1127,236.67,236.64,0.3453]
[1733699178225,12.87759677,236.65,236.64,0.3453]
[1733699179428,13.00308677,236.65,236.64,0.3453]
[1733699181619,20.12549,236.62,236.59,0.3453]
[1733699181933,12.87759677,236.6,236.59,0.3453]
[1733699182529,13.00308677,236.6,236.59,0.3453]
[1733699183113,13.00308677,236.6,236.55,1.5671]
[1733699183114,13.00308677,236.6,236.57,0.3453]
[1733699183316,32.87759677,236.62,236.61,0.3453]
[1733699183511,20.0,236.62,236.61,0.3453]
[1733699184314,12.87759677,236.64,236.63,0.3453]
[1733699185445,13.00308677,236.64,236.63,0.3453]
[1733699190039,2.1127,236.66,236.63,0.3453]
[1733699190334,12.87759677,236.64,236.63,0.3453]
[1733699191733,13.00308677,236.64,236.61,0.3453]
[1733699191943,13.00308677,236.64,236.59,0.3453]
[1733699191944,20.12549,236.61,236.59,0.3453]
[1733699192105,12.87759677,236.6,236.59,0.3453]
[1733699192508,13.00308677,236.6,236.59,0.3453]
[1733699192946,20.12549,236.58,236.57,0.3453]
[1733699193246,33.00308677,236.58,236.57,0.3453]
[1733699196637,12.87759677,236.63,236.61,0.3453]
[1733699196841,0.12549,236.62,236.61,0.3453]
[1733699197548,12.87759677,236.62,236.61,0.3453]
[1733699198849,20.0,236.59,236.54,12.72289677]
[1733699199050,12.87759677,236.62,236.54,12.72289677]
[1733699200134,20.0,236.6,236.55,12.87759677]
[1733699200341,12.87759677,236.63,236.56,12.87759677]
[1733699200531,20.0,236.63,236.59,12.87759677]
[1733699201645,20.0,236.63,236.53,23.776884]
[1733699201953,12.87759677,236.64,236.57,12.87759677]
[1733699203234,12.87759677,236.65,236.57,12.87759677]
[1733699205357,12.87759677,236.62,236.52,23.776884]
[1733699205658,12.87759677,236.6,236.5,1.5321]
[1733699205836,12.87759677,236.57,236.5,14.40969677]
[1733699207337,12.87759677,236.57,236.51,12.87759677]
[1733699207634,13.00308677,236.6,236.53,12.87759677]
[1733699207954,12.87759677,236.59,236.52,12.87759677]
[1733699209474,12.87759677,236.59,236.5,1.5321]
[1733699209475,20.0,236.61,236.54,12.87759677]
[1733699209680,20.0,236.68,236.56,12.87759677]
[1733699209885,12.87759677,236.62,236.54,12.87759677]
[1733699210046,12.87759677,236.61,236.54,12.87759677]
[1733699210247,12.87759677,236.59,236.52,12.87759677]
[1733699211849,12.87759677,236.61,236.54,12.87759677]
[1733699212070,0.12549,236.6,236.54,12.87759677]
[1733699213784,0.12549,236.6,236.55,12.87759677]
[1733699213969,0.12549,236.61,236.55,12.87759677]
[1733699216867,12.87759677,236.63,236.56,12.87759677]
[1733699217074,20.0,236.61,236.57,12.87759677]
[1733699217273,14.99039677,236.66,236.58,12.87759677]
[1733699217579,20.0,236.63,236.58,12.87759677]
[1733699218290,14.99039677,236.66,236.58,12.87759677]